[Event "Early-Titled-Tuesday-Blitz-May-14-2024"]
[Site "Chess.com"]
[Date "2024.05.14"]
[Round "4"]
[White "savitha1030"]
[Black "ContrVersia"]
[Result "1-0"]
[WhiteElo "2534"]
[BlackElo "2900"]
[TimeControl "180+1"]
[EndTime "8:41:27 PDT"]
[Termination "savitha1030 won by checkmate"]

1. Nf3 {[%clk 0:03:00.9]} 1... d5 {[%clk 0:02:56.8]} 2. g3 {[%clk 0:02:57.6]}
2... Nd7 {[%clk 0:02:57]} 3. Bg2 {[%clk 0:02:58.1]} 3... e5 {[%clk 0:02:57]} 4.
d3 {[%clk 0:02:58.8]} 4... Ngf6 {[%clk 0:02:57.2]} 5. O-O {[%clk 0:02:58.8]}
5... Bc5 {[%clk 0:02:57.8]} 6. c3 {[%clk 0:02:56.1]} 6... O-O {[%clk 0:02:57.4]}
7. d4 {[%clk 0:02:56.7]} 7... exd4 {[%clk 0:02:55.3]} 8. cxd4 {[%clk 0:02:57.6]}
8... Bd6 {[%clk 0:02:55.4]} 9. Nc3 {[%clk 0:02:58]} 9... Re8 {[%clk 0:02:53.6]}
10. Nb5 {[%clk 0:02:53.8]} 10... Ne4 {[%clk 0:02:49.2]} 11. Nxd6 {[%clk
0:02:48.3]} 11... Nxd6 {[%clk 0:02:50.1]} 12. Bg5 {[%clk 0:02:48]} 12... f6
{[%clk 0:02:46.1]} 13. Bf4 {[%clk 0:02:48.4]} 13... Nb6 {[%clk 0:02:46.5]} 14.
Rc1 {[%clk 0:02:48.3]} 14... a5 {[%clk 0:02:44.8]} 15. Nd2 {[%clk 0:02:42.2]}
15... c6 {[%clk 0:02:31.1]} 16. h4 {[%clk 0:02:19.4]} 16... Bg4 {[%clk
0:02:18.5]} 17. Bf3 {[%clk 0:02:10.5]} 17... Bxf3 {[%clk 0:02:17.6]} 18. Nxf3
{[%clk 0:02:11.4]} 18... Ne4 {[%clk 0:02:12.7]} 19. b3 {[%clk 0:02:05.5]} 19...
Qd7 {[%clk 0:02:10.5]} 20. Qd3 {[%clk 0:02:00.5]} 20... a4 {[%clk 0:02:03.3]}
21. Nd2 {[%clk 0:01:46.8]} 21... axb3 {[%clk 0:02:03.6]} 22. axb3 {[%clk
0:01:41.1]} 22... Ra2 {[%clk 0:02:03.6]} 23. Rc2 {[%clk 0:01:37.2]} 23... Ra3
{[%clk 0:01:52.4]} 24. Nxe4 {[%clk 0:01:25.1]} 24... dxe4 {[%clk 0:01:51.3]} 25.
Qc3 {[%clk 0:01:14.6]} 25... Nd5 {[%clk 0:01:51.5]} 26. Qc4 {[%clk 0:01:14.8]}
26... Kh8 {[%clk 0:01:51]} 27. e3 {[%clk 0:01:05]} 27... h6 {[%clk 0:01:49.8]}
28. Qc5 {[%clk 0:00:26.8]} 28... Rxb3 {[%clk 0:01:45.4]} 29. Qd6 {[%clk
0:00:24.8]} 29... Qf7 {[%clk 0:01:40.3]} 30. g4 {[%clk 0:00:20.4]} 30... Re6
{[%clk 0:01:03.7]} 31. Qb8+ {[%clk 0:00:20.1]} 31... Kh7 {[%clk 0:01:03.7]} 32.
Bg3 {[%clk 0:00:19.9]} 32... Qd7 {[%clk 0:01:03.2]} 33. g5 {[%clk 0:00:19.8]}
33... f5 {[%clk 0:00:56.9]} 34. gxh6 {[%clk 0:00:18.8]} 34... Rxh6 {[%clk
0:00:57]} 35. Ra1 {[%clk 0:00:18.7]} 35... f4 {[%clk 0:00:53]} 36. exf4 {[%clk
0:00:18]} 36... Qg4 {[%clk 0:00:41.4]} 37. Qe5 {[%clk 0:00:18.4]} 37... Rxg3+
{[%clk 0:00:25.6]} 38. fxg3 {[%clk 0:00:19.3]} 38... Qxg3+ {[%clk 0:00:26.5]}
39. Rg2 {[%clk 0:00:19.6]} 39... Qe3+ {[%clk 0:00:26.9]} 40. Kf1 {[%clk
0:00:20.2]} 40... Qf3+ {[%clk 0:00:22.2]} 41. Kg1 {[%clk 0:00:20.5]} 41... Qe3+
{[%clk 0:00:17.4]} 42. Kf1 {[%clk 0:00:20.4]} 42... Rf6 {[%clk 0:00:18.1]} 43.
Qh5+ {[%clk 0:00:19.6]} 43... Kg8 {[%clk 0:00:05]} 44. Ra8+ {[%clk 0:00:20]}
44... Rf8 {[%clk 0:00:05.4]} 45. Rxf8+ {[%clk 0:00:20.6]} 45... Kxf8 {[%clk
0:00:05.9]} 46. Qh8+ {[%clk 0:00:21.3]} 46... Ke7 {[%clk 0:00:02.6]} 47. Qxg7+
{[%clk 0:00:17.7]} 47... Kd6 {[%clk 0:00:01.7]} 48. Qe5+ {[%clk 0:00:18.1]}
48... Kd7 {[%clk 0:00:01.9]} 49. Rg7+ {[%clk 0:00:18.4]} 49... Kd8 {[%clk
0:00:02.5]} 50. Qb8# {[%clk 0:00:16.2]} 1-0

[Event "Early-Titled-Tuesday-Blitz-May-14-2024"]
[Site "Chess.com"]
[Date "2024.05.14"]
[Round "4"]
[White "SidArun"]
[Black "MasterKroket"]
[Result "1-0"]
[WhiteElo "2359"]
[BlackElo "2530"]
[TimeControl "180+1"]
[EndTime "8:41:27 PDT"]
[Termination "SidArun won by resignation"]

1. d4 {[%clk 0:03:00.9]} 1... Nf6 {[%clk 0:02:59.8]} 2. Nc3 {[%clk 0:03:00.3]}
2... d5 {[%clk 0:02:59.3]} 3. Bf4 {[%clk 0:02:59.7]} 3... a6 {[%clk 0:02:57.3]}
4. e3 {[%clk 0:02:58.8]} 4... Bf5 {[%clk 0:02:57.3]} 5. f3 {[%clk 0:02:55.7]}
5... e6 {[%clk 0:02:55.2]} 6. g4 {[%clk 0:02:55.2]} 6... Bg6 {[%clk 0:02:55.6]}
7. h4 {[%clk 0:02:55.4]} 7... h5 {[%clk 0:02:55.9]} 8. g5 {[%clk 0:02:55.6]}
8... Ng8 {[%clk 0:02:54.7]} 9. Bd3 {[%clk 0:02:55.6]} 9... Ne7 {[%clk
0:02:53.5]} 10. Nge2 {[%clk 0:02:54.7]} 10... Nd7 {[%clk 0:02:46.7]} 11. e4
{[%clk 0:02:48.6]} 11... dxe4 {[%clk 0:02:42.8]} 12. Nxe4 {[%clk 0:02:43.9]}
12... Nd5 {[%clk 0:02:22.3]} 13. Bd2 {[%clk 0:02:42.5]} 13... e5 {[%clk
0:02:06.5]} 14. a3 {[%clk 0:02:14.8]} 14... exd4 {[%clk 0:02:05.4]} 15. Nxd4
{[%clk 0:02:15]} 15... Ne5 {[%clk 0:02:02]} 16. Be2 {[%clk 0:02:00.8]} 16... c5
{[%clk 0:01:54.5]} 17. Nb3 {[%clk 0:01:51]} 17... Qc7 {[%clk 0:01:48.1]} 18. c4
{[%clk 0:01:41.3]} 18... Bxe4 {[%clk 0:01:24.5]} 19. fxe4 {[%clk 0:01:38.4]}
19... Nd3+ {[%clk 0:01:09.7]} 20. Bxd3 {[%clk 0:01:22.6]} 20... Qg3+ {[%clk
0:01:09.8]} 21. Kf1 {[%clk 0:01:19.2]} 21... Qxd3+ {[%clk 0:01:09.5]} 22. Qe2
{[%clk 0:01:13.5]} 22... Qxe2+ {[%clk 0:01:06.2]} 23. Kxe2 {[%clk 0:01:13.2]}
23... Nb6 {[%clk 0:01:06.9]} 24. Rac1 {[%clk 0:01:07.3]} 24... Bd6 {[%clk
0:01:06.7]} 25. Be3 {[%clk 0:01:05]} 25... Rc8 {[%clk 0:01:06.2]} 26. Rhd1
{[%clk 0:01:01.5]} 26... Ke7 {[%clk 0:01:05.9]} 27. e5 {[%clk 0:00:54.1]} 27...
Bc7 {[%clk 0:00:51.3]} 28. Bxc5+ {[%clk 0:00:52.2]} 28... Ke6 {[%clk 0:00:51.7]}
29. Nd4+ {[%clk 0:00:39.8]} 29... Kxe5 {[%clk 0:00:51.1]} 30. Rf1 {[%clk
0:00:36.4]} 30... Na4 {[%clk 0:00:45.7]} 31. Nb3 {[%clk 0:00:16.7]} 31... Nxc5
{[%clk 0:00:42.4]} 32. Nxc5 {[%clk 0:00:16.8]} 32... Rhe8 {[%clk 0:00:33.8]} 33.
Kd3 {[%clk 0:00:14.3]} 33... Rcd8+ {[%clk 0:00:32.4]} 34. Kc3 {[%clk 0:00:13.4]}
34... b6 {[%clk 0:00:24.6]} 35. Rce1+ {[%clk 0:00:12.1]} 35... Kd6 {[%clk
0:00:21.7]} 36. Nb7+ {[%clk 0:00:11.4]} 36... Kc6 {[%clk 0:00:20.2]} 37. Nxd8+
{[%clk 0:00:11.7]} 37... Rxd8 {[%clk 0:00:18.8]} 38. Rxf7 {[%clk 0:00:11.8]}
38... Bg3 {[%clk 0:00:18.9]} 39. Re6+ {[%clk 0:00:11]} 39... Rd6 {[%clk
0:00:16.9]} 40. Rxd6+ {[%clk 0:00:10.6]} 40... Kxd6 {[%clk 0:00:17.8]} 41. Rxg7
{[%clk 0:00:10.9]} 41... Bxh4 {[%clk 0:00:18]} 42. Rh7 {[%clk 0:00:11.3]} 42...
Bxg5 {[%clk 0:00:16.2]} 43. Rxh5 {[%clk 0:00:11.6]} 43... Be3 {[%clk 0:00:15.9]}
44. b4 {[%clk 0:00:11.2]} 44... Kc6 {[%clk 0:00:15.6]} 45. Kd3 {[%clk
0:00:11.5]} 45... Bc1 {[%clk 0:00:15.4]} 46. a4 {[%clk 0:00:12]} 46... Ba3
{[%clk 0:00:15.7]} 47. b5+ {[%clk 0:00:12.2]} 47... axb5 {[%clk 0:00:16.3]} 48.
axb5+ {[%clk 0:00:12.6]} 48... Kc7 {[%clk 0:00:16.8]} 49. Ke4 {[%clk 0:00:12.7]}
49... Bc1 {[%clk 0:00:16.3]} 50. Kd5 {[%clk 0:00:13]} 50... Be3 {[%clk
0:00:16.6]} 51. Rh7+ {[%clk 0:00:13.1]} 51... Kb8 {[%clk 0:00:16]} 52. Re7
{[%clk 0:00:13.3]} 52... Bg1 {[%clk 0:00:16.2]} 53. Re6 {[%clk 0:00:13.6]} 53...
Bf2 {[%clk 0:00:16.1]} 54. Kc6 {[%clk 0:00:13.8]} 54... Bg1 {[%clk 0:00:16.4]}
55. Re8+ {[%clk 0:00:13.6]} 55... Ka7 {[%clk 0:00:16.9]} 56. Re7+ {[%clk
0:00:14]} 56... Kb8 {[%clk 0:00:17]} 57. Rb7+ {[%clk 0:00:14.2]} 57... Kc8
{[%clk 0:00:17.5]} 58. Rxb6 {[%clk 0:00:14.7]} 1-0

[Event "Early-Titled-Tuesday-Blitz-May-14-2024"]
[Site "Chess.com"]
[Date "2024.05.14"]
[Round "4"]
[White "vladgoncharov"]
[Black "JaloliddinIlkhomi"]
[Result "0-1"]
[WhiteElo "2564"]
[BlackElo "2749"]
[TimeControl "180+1"]
[EndTime "8:41:32 PDT"]
[Termination "JaloliddinIlkhomi won on time"]

1. d4 {[%clk 0:03:00.9]} 1... e6 {[%clk 0:02:58.8]} 2. c4 {[%clk 0:02:58.6]}
2... Nf6 {[%clk 0:02:58.7]} 3. Nc3 {[%clk 0:02:58.3]} 3... Bb4 {[%clk
0:02:59.3]} 4. e3 {[%clk 0:02:58.5]} 4... O-O {[%clk 0:02:59.4]} 5. Bd3 {[%clk
0:02:58.2]} 5... d5 {[%clk 0:02:58.1]} 6. Ne2 {[%clk 0:02:57.7]} 6... b6 {[%clk
0:02:57.8]} 7. cxd5 {[%clk 0:02:51.4]} 7... exd5 {[%clk 0:02:56.2]} 8. O-O
{[%clk 0:02:50.9]} 8... Bb7 {[%clk 0:02:56.1]} 9. a3 {[%clk 0:02:46.4]} 9... Bd6
{[%clk 0:02:53.9]} 10. Ng3 {[%clk 0:02:46.2]} 10... Re8 {[%clk 0:02:47.5]} 11.
b4 {[%clk 0:02:39]} 11... Nbd7 {[%clk 0:02:45.4]} 12. Bb2 {[%clk 0:02:35.5]}
12... a6 {[%clk 0:02:39.4]} 13. Rc1 {[%clk 0:02:08.2]} 13... g6 {[%clk
0:02:37.8]} 14. Re1 {[%clk 0:02:00.2]} 14... h5 {[%clk 0:01:40.4]} 15. h3 {[%clk
0:01:48.5]} 15... Qe7 {[%clk 0:01:17.3]} 16. f4 {[%clk 0:01:39.7]} 16... h4
{[%clk 0:01:08.4]} 17. Nh1 {[%clk 0:01:31.1]} 17... Nh5 {[%clk 0:01:05.6]} 18.
Qg4 {[%clk 0:01:20.6]} 18... Ng7 {[%clk 0:00:59.6]} 19. Nf2 {[%clk 0:01:15.8]}
19... c6 {[%clk 0:00:53.9]} 20. e4 {[%clk 0:00:58.3]} 20... dxe4 {[%clk
0:00:45.9]} 21. Ncxe4 {[%clk 0:00:54.2]} 21... Nf6 {[%clk 0:00:30.9]} 22. Qxh4
{[%clk 0:00:40.3]} 22... Nxe4 {[%clk 0:00:25.8]} 23. Qxe7 {[%clk 0:00:39.7]}
23... Rxe7 {[%clk 0:00:20.8]} 24. Nxe4 {[%clk 0:00:39.4]} 24... Bxf4 {[%clk
0:00:19.6]} 25. Rcd1 {[%clk 0:00:25.2]} 25... f5 {[%clk 0:00:13.4]} 26. Bc4+
{[%clk 0:00:15.3]} 26... Kh8 {[%clk 0:00:12.6]} 27. Nf6 {[%clk 0:00:14.1]} 27...
Re3 {[%clk 0:00:08.1]} 28. Rxe3 {[%clk 0:00:12.7]} 28... Bxe3+ {[%clk 0:00:09]}
29. Kh2 {[%clk 0:00:12.7]} 29... Rf8 {[%clk 0:00:09.9]} 30. Nd7 {[%clk
0:00:12.5]} 30... Rd8 {[%clk 0:00:08.9]} 31. Ne5 {[%clk 0:00:12.7]} 31... Bf4+
{[%clk 0:00:08.9]} 32. g3 {[%clk 0:00:08.9]} 32... Bxe5 {[%clk 0:00:09.8]} 33.
Re1 {[%clk 0:00:07]} 33... Bf6 {[%clk 0:00:08.2]} 34. g4 {[%clk 0:00:05.6]}
34... b5 {[%clk 0:00:08.4]} 35. Bb3 {[%clk 0:00:05]} 35... Bc8 {[%clk 0:00:09]}
36. Kg3 {[%clk 0:00:05]} 36... fxg4 {[%clk 0:00:09.1]} 37. hxg4 {[%clk 0:00:05]}
37... Ne8 {[%clk 0:00:05.7]} 38. Kf4 {[%clk 0:00:03.3]} 38... Kg7 {[%clk
0:00:06.1]} 39. g5 {[%clk 0:00:03.4]} 39... Bxg5+ {[%clk 0:00:03.6]} 40. Kxg5
{[%clk 0:00:03.1]} 40... Kf8 {[%clk 0:00:02.3]} 41. Kxg6 {[%clk 0:00:01.4]}
41... Rd6+ {[%clk 0:00:01.8]} 42. Kg5 {[%clk 0:00:01.5]} 42... Rf6 {[%clk
0:00:02.4]} 43. d5 {[%clk 0:00:01.2]} 43... Rf5+ {[%clk 0:00:02.9]} 0-1

[Event "Early-Titled-Tuesday-Blitz-May-14-2024"]
[Site "Chess.com"]
[Date "2024.05.14"]
[Round "4"]
[White "Aryan_Tamadon"]
[Black "AsaHoffmann"]
[Result "1-0"]
[WhiteElo "2527"]
[BlackElo "2321"]
[TimeControl "180+1"]
[EndTime "8:41:32 PDT"]
[Termination "Aryan_Tamadon won by resignation"]

1. Nf3 {[%clk 0:02:52.3]} 1... d6 {[%clk 0:02:59.3]} 2. d3 {[%clk 0:02:52.3]}
2... e5 {[%clk 0:02:53.8]} 3. g3 {[%clk 0:02:52.7]} 3... c6 {[%clk 0:02:53.1]}
4. Bg2 {[%clk 0:02:53.3]} 4... Nf6 {[%clk 0:02:52.8]} 5. O-O {[%clk 0:02:54.1]}
5... Be7 {[%clk 0:02:52.7]} 6. e4 {[%clk 0:02:54.6]} 6... h6 {[%clk 0:02:51.9]}
7. c3 {[%clk 0:02:55.4]} 7... Be6 {[%clk 0:02:51.6]} 8. Qc2 {[%clk 0:02:56.3]}
8... Qd7 {[%clk 0:02:51.6]} 9. d4 {[%clk 0:02:57]} 9... exd4 {[%clk 0:02:44.7]}
10. cxd4 {[%clk 0:02:57.9]} 10... Bh3 {[%clk 0:02:44.2]} 11. Nc3 {[%clk
0:02:56.7]} 11... Bxg2 {[%clk 0:02:43.4]} 12. Kxg2 {[%clk 0:02:57.6]} 12... O-O
{[%clk 0:02:42.9]} 13. Bf4 {[%clk 0:02:52.1]} 13... Na6 {[%clk 0:02:39.7]} 14.
Qd2 {[%clk 0:02:52]} 14... Nc7 {[%clk 0:02:35.7]} 15. h3 {[%clk 0:02:39.5]}
15... Rfe8 {[%clk 0:02:31.5]} 16. Rfe1 {[%clk 0:02:38.2]} 16... Bf8 {[%clk
0:02:30.9]} 17. Rad1 {[%clk 0:02:37.1]} 17... Rad8 {[%clk 0:02:29.4]} 18. g4
{[%clk 0:02:35.2]} 18... b5 {[%clk 0:02:28.5]} 19. a3 {[%clk 0:02:35.2]} 19...
a5 {[%clk 0:02:28.3]} 20. b4 {[%clk 0:02:35.9]} 20... axb4 {[%clk 0:02:25.4]}
21. axb4 {[%clk 0:02:36.8]} 21... Nh7 {[%clk 0:02:10.3]} 22. Qd3 {[%clk
0:02:28.6]} 22... Ne6 {[%clk 0:02:06.7]} 23. Bh2 {[%clk 0:02:26.4]} 23... Qb7
{[%clk 0:01:59.9]} 24. d5 {[%clk 0:02:25]} 24... Nc7 {[%clk 0:01:53.6]} 25. dxc6
{[%clk 0:02:19.9]} 25... Qxc6 {[%clk 0:01:52.5]} 26. Rc1 {[%clk 0:02:20.1]}
26... Qb7 {[%clk 0:01:50.7]} 27. Nd4 {[%clk 0:02:20]} 27... Rb8 {[%clk 0:01:46]}
28. Nf5 {[%clk 0:02:09.5]} 28... Red8 {[%clk 0:01:39.7]} 29. Red1 {[%clk
0:01:31.2]} 29... Nf6 {[%clk 0:01:37.6]} 30. f3 {[%clk 0:01:31]} 30... Ne6
{[%clk 0:01:32.3]} 31. Nd5 {[%clk 0:01:28.3]} 31... Nxd5 {[%clk 0:01:29.4]} 32.
exd5 {[%clk 0:01:29.2]} 32... Ng5 {[%clk 0:01:19.9]} 33. h4 {[%clk 0:01:25.9]}
33... Nh7 {[%clk 0:01:18.8]} 34. Rc6 {[%clk 0:01:23.8]} 34... Nf6 {[%clk
0:01:14.6]} 35. g5 {[%clk 0:01:21.8]} 35... hxg5 {[%clk 0:01:09.4]} 36. hxg5
{[%clk 0:01:22.7]} 36... Ne8 {[%clk 0:01:09.4]} 37. Bf4 {[%clk 0:01:19.6]} 37...
Ra8 {[%clk 0:01:07.8]} 38. Rh1 {[%clk 0:01:19.3]} 38... Ra2+ {[%clk 0:01:06.5]}
39. Kg3 {[%clk 0:01:19.5]} 39... g6 {[%clk 0:00:59.9]} 40. Qc3 {[%clk
0:01:06.3]} 40... Bg7 {[%clk 0:00:55.2]} 41. Nxg7 {[%clk 0:00:53.9]} 41... Nxg7
{[%clk 0:00:54.9]} 42. Bxd6 {[%clk 0:00:54.8]} 42... Qd7 {[%clk 0:00:48.4]} 43.
Qxg7+ {[%clk 0:00:53.5]} 43... Kxg7 {[%clk 0:00:45.4]} 44. Be5+ {[%clk
0:00:54.4]} 44... f6 {[%clk 0:00:44.7]} 45. Bxf6+ {[%clk 0:00:54.6]} 45... Kg8
{[%clk 0:00:41]} 46. Rh8+ {[%clk 0:00:53.9]} 46... Kf7 {[%clk 0:00:40.7]} 47.
Rxd8 {[%clk 0:00:53.4]} 47... Qxd8 {[%clk 0:00:28.4]} 48. Bxd8 {[%clk
0:00:54.3]} 48... Rd2 {[%clk 0:00:27.8]} 49. d6 {[%clk 0:00:52.1]} 49... Ke6
{[%clk 0:00:26.7]} 50. Be7 {[%clk 0:00:52.7]} 50... Rd4 {[%clk 0:00:23.3]} 51.
Rc7 {[%clk 0:00:52.8]} 51... Rxb4 {[%clk 0:00:22.6]} 52. Bf8 {[%clk 0:00:48]}
52... Rd4 {[%clk 0:00:20.9]} 53. Rb7 {[%clk 0:00:46.9]} 53... b4 {[%clk
0:00:20.8]} 54. Kf2 {[%clk 0:00:47.1]} 54... Kf5 {[%clk 0:00:17.6]} 55. Ke3
{[%clk 0:00:39.5]} 55... Rd1 {[%clk 0:00:16.1]} 56. d7 {[%clk 0:00:33.2]} 56...
Kxg5 {[%clk 0:00:15.3]} 57. d8=Q+ {[%clk 0:00:33]} 57... Rxd8 {[%clk 0:00:13.6]}
58. Be7+ {[%clk 0:00:33.6]} 58... Kf5 {[%clk 0:00:13.4]} 59. Bxd8 {[%clk
0:00:34]} 1-0

[Event "Early-Titled-Tuesday-Blitz-May-14-2024"]
[Site "Chess.com"]
[Date "2024.05.14"]
[Round "4"]
[White "Pumpkin_in_moonlight"]
[Black "HanSchut"]
[Result "0-1"]
[WhiteElo "2190"]
[BlackElo "2392"]
[TimeControl "180+1"]
[EndTime "8:41:32 PDT"]
[Termination "HanSchut won on time"]

1. e4 {[%clk 0:03:00.9]} 1... c5 {[%clk 0:02:58.8]} 2. Nf3 {[%clk 0:02:59.4]}
2... d6 {[%clk 0:02:59.3]} 3. d4 {[%clk 0:02:48.6]} 3... cxd4 {[%clk 0:03:00.2]}
4. Nxd4 {[%clk 0:02:48.8]} 4... Nf6 {[%clk 0:03:00.8]} 5. Nc3 {[%clk 0:02:47.5]}
5... a6 {[%clk 0:03:01.3]} 6. g3 {[%clk 0:02:46.2]} 6... g6 {[%clk 0:03:00.1]}
7. Bg2 {[%clk 0:02:45.6]} 7... Bg7 {[%clk 0:03:00.8]} 8. O-O {[%clk 0:02:34.6]}
8... O-O {[%clk 0:03:01.4]} 9. h3 {[%clk 0:02:25.5]} 9... Bd7 {[%clk 0:03:01.3]}
10. Be3 {[%clk 0:02:24.1]} 10... Nc6 {[%clk 0:03:01.6]} 11. Nd5 {[%clk
0:01:50.7]} 11... Nxd4 {[%clk 0:02:25.5]} 12. Bxd4 {[%clk 0:01:47.8]} 12... Nxd5
{[%clk 0:02:19.2]} 13. Bxg7 {[%clk 0:01:41.7]} 13... Kxg7 {[%clk 0:02:14.1]} 14.
exd5 {[%clk 0:01:41]} 14... Rc8 {[%clk 0:02:10.8]} 15. Qd4+ {[%clk 0:01:34.8]}
15... Kg8 {[%clk 0:02:07.6]} 16. c4 {[%clk 0:01:33.9]} 16... Qc7 {[%clk
0:02:01]} 17. Rfc1 {[%clk 0:01:28.6]} 17... Rfe8 {[%clk 0:01:57.9]} 18. b4
{[%clk 0:01:20.1]} 18... b6 {[%clk 0:01:57.8]} 19. a4 {[%clk 0:01:03.4]} 19...
a5 {[%clk 0:01:50.8]} 20. bxa5 {[%clk 0:00:49.2]} 20... bxa5 {[%clk 0:01:50.7]}
21. h4 {[%clk 0:00:44.3]} 21... Qc5 {[%clk 0:01:44.6]} 22. Qd2 {[%clk
0:00:40.7]} 22... Qb4 {[%clk 0:01:38.9]} 23. Qf4 {[%clk 0:00:31.4]} 23... Rc5
{[%clk 0:01:33.3]} 24. h5 {[%clk 0:00:29.8]} 24... Rec8 {[%clk 0:01:28.6]} 25.
Bf1 {[%clk 0:00:20.4]} 25... Bxa4 {[%clk 0:01:18.5]} 26. h6 {[%clk 0:00:19.8]}
26... Be8 {[%clk 0:01:09.3]} 27. Qe3 {[%clk 0:00:15]} 27... R5c7 {[%clk
0:00:54.9]} 28. Qd4 {[%clk 0:00:07.1]} 28... f6 {[%clk 0:00:55.2]} 29. Qe3
{[%clk 0:00:07.1]} 29... Bf7 {[%clk 0:00:45.1]} 30. Bh3 {[%clk 0:00:03.5]} 30...
Ra8 {[%clk 0:00:32]} 31. Be6 {[%clk 0:00:03.7]} 31... Qc5 {[%clk 0:00:29.9]} 32.
Bxf7+ {[%clk 0:00:03.6]} 32... Kxf7 {[%clk 0:00:30.8]} 33. Qe6+ {[%clk
0:00:04.1]} 33... Kf8 {[%clk 0:00:31.5]} 34. Kg2 {[%clk 0:00:04.1]} 34... Rb7
{[%clk 0:00:22.9]} 35. Rc3 {[%clk 0:00:03.8]} 35... Qc8 {[%clk 0:00:20.8]} 36.
Qe4 {[%clk 0:00:02.4]} 36... Qf5 {[%clk 0:00:18.2]} 37. Qd4 {[%clk 0:00:02.3]}
37... a4 {[%clk 0:00:14.9]} 38. Raa3 {[%clk 0:00:02]} 38... Qe5 {[%clk
0:00:14.9]} 39. Qd3 {[%clk 0:00:01.9]} 39... Rab8 {[%clk 0:00:14.7]} 40. Qf3
{[%clk 0:00:01.6]} 40... Rb3 {[%clk 0:00:14.3]} 41. Re3 {[%clk 0:00:01.7]} 41...
Rxe3 {[%clk 0:00:13.9]} 42. Rxe3 {[%clk 0:00:02.6]} 42... Qf5 {[%clk 0:00:13.5]}
43. Qe2 {[%clk 0:00:02.6]} 43... Ra8 {[%clk 0:00:13.3]} 44. Rxe7 {[%clk
0:00:02.6]} 44... a3 {[%clk 0:00:10.2]} 45. Rg7 {[%clk 0:00:02.7]} 45... Qe5
{[%clk 0:00:09.7]} 46. Qf3 {[%clk 0:00:01.1]} 46... f5 {[%clk 0:00:09.6]} 47.
Rxh7 {[%clk 0:00:00.9]} 47... Kg8 {[%clk 0:00:08.2]} 48. Rg7+ {[%clk 0:00:00.6]}
48... Kh8 {[%clk 0:00:08.5]} 49. Rxg6 {[%clk 0:00:00.2]} 49... Qe4 {[%clk
0:00:08.7]} 0-1

[Event "Early-Titled-Tuesday-Blitz-May-14-2024"]
[Site "Chess.com"]
[Date "2024.05.14"]
[Round "4"]
[White "Alexander_Donchenko"]
[Black "rpragchess"]
[Result "0-1"]
[WhiteElo "2872"]
[BlackElo "3098"]
[TimeControl "180+1"]
[EndTime "8:41:33 PDT"]
[Termination "rpragchess won by resignation"]

1. e4 {[%clk 0:03:00.9]} 1... e5 {[%clk 0:02:52.5]} 2. Nf3 {[%clk 0:03:00.9]}
2... Nc6 {[%clk 0:02:52.5]} 3. Bb5 {[%clk 0:03:01.5]} 3... a6 {[%clk 0:02:52.3]}
4. Ba4 {[%clk 0:03:01.9]} 4... d6 {[%clk 0:02:51.8]} 5. c4 {[%clk 0:02:59.4]}
5... Bd7 {[%clk 0:02:46.9]} 6. O-O {[%clk 0:02:57.6]} 6... g6 {[%clk 0:02:27.5]}
7. d4 {[%clk 0:02:57.4]} 7... exd4 {[%clk 0:02:25]} 8. Bxc6 {[%clk 0:02:57.2]}
8... bxc6 {[%clk 0:02:19.4]} 9. Qxd4 {[%clk 0:02:57.2]} 9... f6 {[%clk
0:02:17.6]} 10. Nc3 {[%clk 0:02:55.2]} 10... c5 {[%clk 0:02:14.3]} 11. Qd2
{[%clk 0:02:50.2]} 11... Bg7 {[%clk 0:02:10.7]} 12. b3 {[%clk 0:02:50]} 12...
Ne7 {[%clk 0:02:08.1]} 13. Bb2 {[%clk 0:02:50.1]} 13... O-O {[%clk 0:02:07.9]}
14. h3 {[%clk 0:02:49.6]} 14... Kh8 {[%clk 0:02:05.5]} 15. Rfe1 {[%clk
0:02:44.7]} 15... a5 {[%clk 0:02:04]} 16. Nd5 {[%clk 0:02:35.6]} 16... a4 {[%clk
0:01:54.5]} 17. h4 {[%clk 0:02:34]} 17... Nc6 {[%clk 0:01:22.7]} 18. Bc3 {[%clk
0:02:25.8]} 18... Ne5 {[%clk 0:01:13]} 19. Nh2 {[%clk 0:02:22.1]} 19... Rb8
{[%clk 0:01:07.6]} 20. Rab1 {[%clk 0:02:19.8]} 20... axb3 {[%clk 0:00:49.8]} 21.
axb3 {[%clk 0:02:20.7]} 21... Rb7 {[%clk 0:00:50.4]} 22. f4 {[%clk 0:02:20.3]}
22... Nc6 {[%clk 0:00:50.1]} 23. h5 {[%clk 0:02:17.4]} 23... gxh5 {[%clk
0:00:49.3]} 24. Qd1 {[%clk 0:02:10.4]} 24... Qe8 {[%clk 0:00:48]} 25. Kh1 {[%clk
0:02:04.9]} 25... Qf7 {[%clk 0:00:45.6]} 26. Re3 {[%clk 0:02:01.3]} 26... Nd4
{[%clk 0:00:43.8]} 27. Bxd4 {[%clk 0:01:57.8]} 27... cxd4 {[%clk 0:00:43]} 28.
Qxd4 {[%clk 0:01:58.7]} 28... f5 {[%clk 0:00:41.4]} 29. e5 {[%clk 0:01:58.9]}
29... c6 {[%clk 0:00:33.9]} 30. Nc3 {[%clk 0:01:39.1]} 30... dxe5 {[%clk
0:00:33.9]} 31. fxe5 {[%clk 0:01:40]} 31... f4 {[%clk 0:00:34.6]} 32. Ree1
{[%clk 0:01:37.6]} 32... Bf5 {[%clk 0:00:31.8]} 33. Rb2 {[%clk 0:01:34.4]} 33...
Bg6 {[%clk 0:00:17]} 34. Ne4 {[%clk 0:01:32]} 34... Re7 {[%clk 0:00:15]} 35. Nf3
{[%clk 0:01:30.1]} 35... Qf5 {[%clk 0:00:12.8]} 36. Nd6 {[%clk 0:01:21]} 36...
Qg4 {[%clk 0:00:12.9]} 37. Qf2 {[%clk 0:01:12.7]} 37... Qg3 {[%clk 0:00:11.8]}
38. Rbe2 {[%clk 0:01:00.9]} 38... h4 {[%clk 0:00:05.9]} 39. Nxh4 {[%clk
0:00:59.8]} 39... Qxf2 {[%clk 0:00:06]} 40. Rxf2 {[%clk 0:00:58.3]} 40... Rxe5
{[%clk 0:00:06.5]} 41. Rxe5 {[%clk 0:00:47.4]} 41... Bxe5 {[%clk 0:00:07.4]} 42.
Nxg6+ {[%clk 0:00:48.3]} 42... hxg6 {[%clk 0:00:07.7]} 43. Ne4 {[%clk
0:00:49.2]} 43... Rd8 {[%clk 0:00:07]} 44. Re2 {[%clk 0:00:46.4]} 44... Kg7
{[%clk 0:00:04.9]} 45. Kg1 {[%clk 0:00:40]} 45... Rd1+ {[%clk 0:00:03.3]} 46.
Kf2 {[%clk 0:00:40.3]} 46... Rd3 {[%clk 0:00:03.5]} 47. Nc5 {[%clk 0:00:39.4]}
47... Bd4+ {[%clk 0:00:03.8]} 48. Ke1 {[%clk 0:00:39.9]} 48... Bxc5 {[%clk
0:00:04.5]} 49. Re6 {[%clk 0:00:40]} 49... Bb4+ {[%clk 0:00:03.8]} 50. Kf2
{[%clk 0:00:39.3]} 50... Rxb3 {[%clk 0:00:03.1]} 51. Rxc6 {[%clk 0:00:39.5]}
51... Bd2 {[%clk 0:00:03.6]} 52. Rd6 {[%clk 0:00:39.1]} 52... Be3+ {[%clk
0:00:04.1]} 53. Ke2 {[%clk 0:00:39.7]} 53... Rb2+ {[%clk 0:00:04]} 54. Kf3
{[%clk 0:00:40.3]} 54... Rf2+ {[%clk 0:00:04.7]} 55. Ke4 {[%clk 0:00:41]} 55...
Rxg2 {[%clk 0:00:05.5]} 56. c5 {[%clk 0:00:41.1]} 56... Bxc5 {[%clk 0:00:05.3]}
57. Rd7+ {[%clk 0:00:41.4]} 57... Kf6 {[%clk 0:00:05.5]} 58. Kxf4 {[%clk
0:00:42.3]} 58... Rf2+ {[%clk 0:00:05.8]} 59. Kg3 {[%clk 0:00:42.7]} 59... Rf5
{[%clk 0:00:06]} 60. Rc7 {[%clk 0:00:42.6]} 60... Bd6+ {[%clk 0:00:06.2]} 0-1